bitfinex/quotes_ETHUSD_20251023
["timestamp","ask_amount","ask_price","bid_price","bid_amount"]
[1761180419666,0.001,3808.9,3808.7,0.1312]
[1761180420066,0.001,3808.9,3808.8,0.4523]
[1761180426966,0.001,3808.9,3808.8,6.91267884]
[1761180427167,0.001,3808.9,3808.8,7.04387884]
[1761180427484,0.001,3808.9,3808.8,8.01102859]
[1761180427885,0.001,3808.9,3808.8,9.56622859]
[1761180432110,0.001,3808.9,3808.8,0.1312]
[1761180432270,0.001,3808.9,3808.5,0.002]
[1761180432271,0.001,3808.9,3808.7,2.62554737]
[1761180432469,0.001,3808.9,3808.7,0.4523]
[1761180432665,0.001,3808.9,3808.5,0.10711226]
[1761180432887,0.001,3808.9,3808.5,0.4543]
[1761180433491,0.001,3808.9,3808.5,3.08000096]
[1761180433697,0.001,3808.9,3808.6,0.4523]
[1761180434896,0.001,3808.9,3808.6,3.07789166]
[1761180435344,0.001,3808.9,3808.7,0.4523]
[1761180435812,0.001,3808.9,3808.5,0.4543]
[1761180436663,2.62553716,3808.8,3808.5,0.002]
[1761180436901,2.62553716,3808.8,3808.6,0.1312]
[1761180437098,2.98896777,3808.7,3808.6,0.1312]
[1761180437297,2.62563671,3808.6,3808.5,0.002]
[1761180437603,3.93634722,3808.6,3808.5,0.002]
[1761180438303,4.06754722,3808.6,3808.5,0.002]
[1761180441215,0.94731051,3808.6,3808.5,0.002]
[1761180441522,1.5552,3808.8,3808.5,0.002]
[1761180441523,2.62558105,3808.7,3808.5,0.002]
[1761180443786,2.62563671,3808.6,3808.5,0.002]
[1761180446286,1.5552,3808.8,3808.5,0.1332]
[1761180446512,4.18070185,3808.8,3808.5,0.1332]
[1761180446893,1.5552,3808.8,3808.5,0.5771]
[1761180447315,1.5552,3808.8,3808.6,0.4439]
[1761180449011,1.5552,3808.8,3808.5,0.1332]
[1761180449392,1.5552,3808.8,3808.5,0.5842]
[1761180449792,1.5552,3808.8,3808.6,0.451]
[1761180451519,4.18069947,3808.8,3808.6,0.451]
[1761180451821,4.18069947,3808.8,3808.5,0.1332]
[1761180452313,4.18069947,3808.8,3808.5,0.5842]
[1761180452845,7.07837406,3808.8,3808.5,0.5842]
[1761180453623,4.45287459,3808.8,3808.5,0.5842]
[1761180454135,7.07838389,3808.8,3808.5,0.1332]
[1761180454326,7.07838389,3808.8,3808.5,0.5842]
[1761180456332,2.62557288,3808.7,3808.5,0.5842]
[1761180456696,7.07839203,3808.8,3808.5,0.5842]
[1761180457216,7.07939203,3808.8,3808.6,0.451]
[1761180457412,0.001,3808.8,3808.5,0.1332]
[1761180457616,0.001,3808.8,3808.5,0.5842]
[1761180457818,2.62650223,3808.8,3808.5,0.5842]
[1761180459248,2.62557026,3808.7,3808.5,0.5842]
[1761180459411,2.62651689,3808.8,3808.5,0.5842]
[1761180460713,2.62651689,3808.8,3808.5,0.1332]
[1761180460913,0.001,3808.8,3808.5,0.1332]
[1761180461525,0.001,3808.8,3808.5,0.5842]
[1761180461938,2.62650986,3808.8,3808.5,0.5842]
[1761180462347,0.4297,3808.7,3808.5,0.1332]
[1761180463245,2.89767459,3808.6,3808.5,0.1332]
[1761180463448,5.5233113,3808.6,3808.5,0.002]
[1761180463612,10.47074977,3808.6,3808.5,0.002]
[1761180465457,3.327,3808.6,3808.5,0.002]
[1761180465657,2.62560046,3808.7,3808.5,0.453]
[1761180466642,2.62560046,3808.7,3808.5,0.002]
[1761180466843,1.5552,3808.7,3808.5,0.453]
[1761180467052,1.5552,3808.7,3808.5,0.5842]
[1761180468262,1.5552,3808.7,3808.5,0.1332]
[1761180471569,1.5552,3808.7,3808.6,0.451]
[1761180471936,3.328,3808.8,3808.6,0.451]
[1761180472338,3.328,3808.8,3808.5,0.1332]
[1761180472678,0.001,3808.8,3808.7,2.62556777]
[1761180472878,0.001,3808.8,3808.7,3.07656777]
[1761180473068,0.001,3808.8,3808.7,0.451]
[1761180473980,0.001,3808.8,3808.5,0.32320341]
[1761180474300,0.001,3808.8,3808.6,0.451]
[1761180474647,0.001,3808.8,3808.7,2.62556777]
[1761180475148,0.001,3808.8,3808.7,0.451]
[1761180477282,0.001,3808.8,3808.7,3.07656777]
[1761180477479,0.001,3808.8,3808.7,3.10282344]
[1761180477681,3.089,3809.3,3808.8,0.451]
[1761180477881,2.89867459,3810.5,3809.5,2.6250164]
[1761180478055,4.44333393,3810.5,3809.5,3.0760164]
[1761180478254,1.819,3810.5,3809.5,3.0760164]
[1761180478461,4.44332982,3810.5,3809.5,3.0760164]
[1761180478864,2.624404,3810.4,3809.5,3.0760164]
[1761180479051,1.819,3810.5,3809.5,3.0760164]
[1761180479870,1.819,3810.5,3809.5,6.4020164]
[1761180482704,1.819,3810.5,3809.5,6.5332164]
[1761180482893,0.001,3810.5,3809.5,6.5332164]
[1761180483200,0.001,3810.5,3809.5,7.97780073]
[1761180483379,0.001,3810.5,3809.5,9.53300073]
[1761180485107,0.201,3810.3,3809.5,7.01892073]
[1761180485405,0.201,3810.3,3809.5,7.48142073]
[1761180486194,0.2,3810.0,3809.5,7.01892073]
[1761180486907,2.62551273,3810.3,3809.5,7.01892073]
[1761180487111,3.09867459,3810.1,3809.5,7.01892073]
[1761180487409,3.09867459,3810.1,3809.5,7.48142073]
[1761180487609,0.001,3810.1,3809.5,7.48142073]
[1761180493638,0.001,3810.1,3809.5,12.44117532]
[1761180493639,0.001,3810.0,3809.5,12.44117532]
[1761180498737,0.001,3810.3,3809.5,12.44117532]
[1761180498738,0.001,3810.3,3810.2,3.13141414]
[1761180498905,0.001,3810.3,3810.2,11.37078873]
[1761180499741,1e-08,3810.5,3810.4,3.13127638]
[1761180499902,1e-08,3810.5,3810.4,4.71272034]
[1761180500102,1e-08,3810.5,3810.4,5.14897638]
[1761180500439,1e-08,3810.5,3810.4,6.57046489]
[1761180502768,1e-08,3810.5,3810.4,6.67549104]
[1761180508869,1e-08,3810.5,3810.4,6.80669104]
[1761180510372,1e-08,3810.5,3810.4,10.12869104]
[1761180512877,1e-08,3810.5,3810.4,13.47457267]
[1761180514785,1e-08,3811.1,3811.0,3.1308632]
[1761180515077,1e-08,3811.1,3811.0,11.66703115]
[1761180515298,1e-08,3811.1,3811.0,12.23813115]
[1761180515606,1e-08,3811.1,3811.0,12.44073115]
[1761180517249,1e-08,3811.1,3811.0,9.11873115]
[1761180517450,1e-08,3811.1,3811.0,12.44073115]
[1761180518151,1e-08,3811.1,3811.0,8.65494952]
[1761180523383,1e-08,3811.1,3811.0,12.44073115]
[1761180524382,1e-08,3811.1,3811.0,12.77902476]
[1761180527388,0.001,3812.1,3811.7,0.50688]
[1761180527692,0.1139,3813.0,3812.9,2.62267565]
[1761180527886,0.1139,3813.0,3812.9,5.94367565]
[1761180528188,0.1139,3813.0,3812.9,6.07487565]
[1761180528389,0.3159,3813.0,3812.9,6.07487565]
[1761180531161,0.3159,3813.0,3812.9,6.58175565]
[1761180531396,0.3159,3813.0,3812.9,7.50220764]
[1761180532090,0.1139,3813.0,3812.9,7.50220764]
[1761180532394,0.2258,3814.0,3813.1,2.62253809]
[1761180532591,0.2011,3813.4,3813.1,3.12941809]
[1761180532902,0.4263,3813.2,3813.1,3.26061809]
[1761180533084,0.4263,3813.2,3813.1,4.27309266]
[1761180533972,0.4263,3813.2,3813.1,2.75373809]
[1761180534285,0.4263,3813.2,3813.1,6.07473809]
[1761180535702,0.4263,3813.2,3813.1,0.1312]
[1761180535878,0.4263,3813.2,3813.1,6.07373809]
[1761180539099,0.4263,3813.2,3813.1,3.4512]
[1761180539484,0.4263,3813.2,3813.1,6.07373809]
[1761180539687,0.2252,3813.2,3813.1,6.07373809]
[1761180539902,0.4263,3813.2,3813.1,6.07373809]
[1761180544533,0.4263,3813.2,3813.1,2.75373809]
[1761180547438,0.4273,3813.2,3813.1,2.75373809]
[1761180548033,0.4273,3813.2,3812.9,0.002]
[1761180548237,0.2011,3813.1,3812.9,0.002]
[1761180548452,0.30497802,3813.0,3812.9,0.002]
[1761180548939,0.2011,3813.0,3812.9,0.002]
[1761180552535,2.82370687,3813.0,3812.9,0.002]
[1761180555018,0.2011,3813.0,3812.9,0.002]
[1761180555625,2.82370687,3813.0,3812.9,0.002]
[1761180557844,6.1695885,3813.0,3812.9,0.002]
[1761180558013,7.48217852,3813.0,3812.9,0.002]
[1761180558340,8.26984368,3813.0,3812.9,0.002]
[1761180559236,9.82504368,3813.0,3812.9,0.002]
[1761180564565,7.20243681,3813.0,3812.9,0.002]
[1761180564870,4.37890687,3813.0,3812.9,0.002]
[1761180565173,4.51110687,3813.0,3812.9,0.002]
[1761180566552,4.37990687,3813.0,3812.9,0.002]
[1761180566957,1.7573,3813.0,3812.9,0.002]
[1761180567459,4.37990687,3813.0,3812.9,0.002]
[1761180567671,4.17880687,3813.0,3812.9,0.002]
[1761180567865,0.001,3813.0,3812.9,0.002]
[1761180568085,0.001,3813.0,3812.9,0.1332]
[1761180569178,0.2023,3813.0,3812.9,0.1332]
[1761180570577,0.001,3813.0,3812.9,0.1332]
[1761180577165,0.2023,3813.0,3812.9,0.1332]
[1761180577475,3.43948603,3813.0,3812.9,0.1332]
[1761180577675,0.81687916,3813.0,3812.9,0.1332]
[1761180577894,0.2023,3813.0,3812.9,0.1332]
[1761180578813,3.5223,3813.0,3812.9,0.1332]
[1761180582303,3.321,3813.0,3812.9,0.1332]
[1761180587028,5.94360687,3813.0,3812.9,0.1332]
[1761180587384,6.14490687,3813.0,3812.9,0.1332]
[1761180587716,7.31080182,3813.0,3812.9,0.002]
[1761180588613,4.68819495,3813.0,3812.9,0.002]
[1761180588798,3.5223,3813.0,3812.9,0.002]
[1761180590120,6.14490687,3813.0,3812.9,0.002]
[1761180591233,6.27610687,3813.0,3812.9,0.002]
[1761180595569,5.94360687,3813.0,3812.9,0.002]
[1761180596327,6.14490687,3813.0,3812.9,0.002]
[1761180602004,5.94360687,3813.0,3812.9,0.002]
[1761180602768,6.14490687,3813.0,3812.9,0.002]
[1761180604198,10.21448028,3813.0,3812.9,0.002]
[1761180604372,10.34568028,3813.0,3812.9,0.002]
[1761180605778,8.83416643,3813.0,3812.9,0.002]
[1761180606366,3.321,3813.0,3812.9,0.002]
[1761180606688,5.94360687,3813.0,3812.9,0.002]
[1761180607401,3.321,3813.0,3812.9,0.002]
[1761180608090,5.94360687,3813.0,3812.9,0.002]
[1761180609575,3.321,3813.0,3812.9,0.4433]
[1761180609807,3.321,3813.0,3812.9,0.5745]
[1761180610876,3.321,3813.0,3812.9,0.1332]
[1761180611990,6.73935958,3813.0,3812.9,0.002]
[1761180617038,8.29455958,3813.0,3812.9,0.002]
[1761180620437,10.98381914,3813.0,3812.9,0.002]
[1761180620817,11.18511914,3813.0,3812.9,0.002]
[1761180621907,11.11501914,3813.0,3812.9,0.002]
[1761180623453,8.22445958,3813.0,3812.9,0.002]
[1761180624140,4.8762,3813.0,3812.9,0.4536]
[1761180624339,7.49880687,3813.0,3812.9,0.4536]
[1761180624541,7.49880687,3813.0,3812.9,0.002]
[1761180628732,4.8762,3813.0,3812.9,0.4315]
[1761180629370,3.321,3813.0,3812.9,0.002]
[1761180629662,3.321,3813.0,3812.9,0.5627]
[1761180631445,0.001,3813.0,3812.9,1.14615412]
[1761180631635,0.001,3813.0,3812.9,0.5627]
[1761180635566,0.001,3813.0,3812.9,0.1332]
[1761180635741,0.001,3813.0,3812.9,0.5627]
[1761180636562,0.001,3813.0,3812.9,0.1332]
[1761180636768,0.001,3813.0,3812.9,0.5627]
[1761180638379,0.001,3813.0,3812.9,0.1332]
[1761180638957,0.2089,3813.0,3812.9,0.1332]
[1761180639366,0.001,3813.0,3812.9,0.1332]
[1761180643285,0.2089,3813.0,3812.9,0.1332]
[1761180643454,0.001,3813.0,3812.9,0.1332]
[1761180643985,0.001,3813.0,3812.9,3.05417565]
[1761180644190,0.001,3813.0,3812.9,3.95356895]
[1761180646502,0.001,3813.0,3812.9,5.50876895]
[1761180647498,0.001,3813.0,3812.9,8.82576895]
[1761180652515,0.001,3813.0,3812.9,7.27056895]
[1761180653809,0.001,3813.0,3812.9,7.40176895]
[1761180654612,0.001,3813.0,3812.9,4.08476895]
[1761180654777,0.001,3813.0,3812.9,7.40076895]
[1761180661498,0.001,3813.0,3812.9,7.90764895]
[1761180662002,0.001,3813.0,3812.9,8.01262714]
[1761180662498,0.001,3813.0,3812.9,9.56782714]
[1761180662933,0.001,3813.0,3812.9,9.43662714]
[1761180673147,0.001,3813.0,3812.9,9.56782714]
[1761180674218,0.001,3813.0,3812.9,9.59494714]
[1761180674445,0.001,3813.0,3812.9,12.90994714]
[1761180674648,0.001,3813.0,3812.9,13.41682714]
[1761180676265,0.001,3813.0,3812.9,13.28562714]
[1761180676562,0.001,3813.8,3812.9,13.28562714]
[1761180676563,0.1876,3815.2,3814.1,2.6218505]
[1761180676744,0.1876,3815.2,3814.1,8.025149]
[1761180676946,0.6,3815.7,3814.1,8.4723305]
[1761180677261,0.1876,3815.4,3814.1,8.6972305]
[1761180677850,0.1876,3815.2,3814.1,8.6972305]
[1761180678049,0.1876,3815.0,3814.1,8.6972305]
[1761180678256,0.2297,3814.9,3814.1,8.6972305]
[1761180678650,0.3,3815.6,3814.1,8.6972305]
[1761180678864,0.4125,3815.3,3814.1,8.6972305]
[1761180681566,0.001,3814.6,3814.1,8.6972305]
[1761180682771,0.3,3815.6,3815.5,4.68296848]
[1761180682985,0.3,3815.6,3815.5,8.72736296]
[1761180683188,0.3,3815.6,3815.5,9.20076296]
[1761180683549,0.3,3815.6,3815.5,9.80076296]
[1761180683853,0.3,3815.6,3815.5,9.32736296]
[1761180684173,0.3,3815.6,3815.5,6.01336296]
[1761180684375,0.3,3815.6,3815.5,9.32736296]
[1761180685742,0.3,3815.6,3815.5,9.76176296]
[1761180686474,0.3,3815.6,3815.5,9.45856296]
[1761180686673,0.3,3815.6,3815.5,9.89296296]
[1761180687376,0.3,3815.6,3815.5,9.45856296]
[1761180687578,0.3,3815.6,3815.5,9.89296296]
[1761180689250,0.6,3815.7,3815.6,4.68289979]
[1761180689478,0.6,3815.7,3815.6,6.30455433]
[1761180689975,0.3295,3816.8,3815.6,6.30455433]
[1761180689976,0.2285,3816.8,3816.7,2.62006445]
[1761180690174,0.2285,3816.8,3816.7,5.93406445]
[1761180690376,0.3295,3816.8,3816.7,5.93406445]
[1761180690576,0.3295,3816.8,3816.7,6.06526445]
[1761180691684,0.2285,3816.8,3816.7,6.06526445]
[1761180692255,0.2301,3817.1,3816.7,6.06526445]
[1761180692256,0.2301,3817.1,3817.0,2.61985852]
[1761180692756,0.2301,3817.1,3817.0,0.1312]
[1761180692988,0.3324,3817.1,3817.0,0.1312]
[1761180693164,2.61931765,3817.8,3817.0,0.1312]
[1761180693165,0.1031,3817.5,3817.0,6.0650333]
[1761180693498,0.1031,3817.9,3817.4,0.1312]
[1761180693680,0.1031,3817.9,3817.8,2.61930955]
[1761180694007,0.1031,3817.9,3817.8,0.1312]
[1761180694294,0.1031,3817.9,3817.6,0.1312]
[1761180694596,0.36778542,3817.8,3817.6,0.1312]
[1761180694955,0.1031,3817.7,3817.6,0.1312]
[1761180698587,2.72247815,3817.7,3817.6,0.1312]
[1761180699011,0.1031,3817.7,3817.6,0.1312]
[1761180699874,0.1031,3817.7,3817.1,4.17498989]
[1761180700074,0.1031,3817.7,3817.3,2.61960552]
[1761180700280,0.1031,3817.7,3817.4,2.61956138]
[1761180700480,0.1031,3817.7,3817.1,4.17498989]
[1761180700481,0.1031,3817.7,3817.1,1.5552]
[1761180700810,0.1031,3817.7,3817.1,4.17497581]
[1761180701019,0.1031,3817.7,3817.4,2.61956843]
[1761180701601,0.1031,3817.7,3817.1,4.17497581]
[1761180701602,0.1031,3817.7,3817.2,2.61968168]
[1761180701803,0.1031,3817.7,3817.4,2.61951871]
[1761180702010,0.001,3817.8,3817.4,3.316]
[1761180702244,0.001,3817.8,3817.7,2.61937815]
[1761180705282,0.001,3817.8,3817.7,5.53694704]
[1761180705514,0.001,3817.8,3817.7,6.01184704]
[1761180705936,0.001,3817.8,3817.7,1.5552]
[1761180706144,0.001,3817.8,3817.7,7.48957815]
[1761180706145,0.3299,3817.8,3817.7,7.48957815]
[1761180706544,0.001,3817.8,3817.7,7.48957815]
[1761180709346,0.001,3817.8,3817.7,4.17457815]
[1761180709723,0.103,3817.8,3817.7,4.17457815]
[1761180710040,0.001,3817.8,3817.7,4.30577815]
[1761180710357,0.001,3817.8,3817.7,1.6864]
[1761180710358,0.1077,3817.8,3817.7,1.6864]
[1761180710712,0.1077,3817.8,3817.7,0.1312]
[1761180710951,0.1077,3817.8,3817.3,5.94565115]
[1761180711143,0.1077,3817.8,3817.6,0.1312]
[1761180711308,0.40301085,3817.8,3817.6,0.1312]
[1761180711711,0.1067,3817.7,3817.6,0.1312]
[1761180711908,5.60977824,3817.7,3816.8,2.61998382]
[1761180712141,2.61945947,3817.6,3817.3,0.1312]
[1761180712442,2.88370009,3817.4,3817.3,0.1312]
[1761180712634,3.47765245,3817.4,3817.3,0.1312]
[1761180712837,1.02715236,3817.4,3817.3,0.1312]
[1761180713137,0.4332,3817.4,3817.3,0.1312]
[1761180718435,0.2165,3817.6,3817.3,0.1312]
[1761180718653,0.2189,3817.4,3817.3,0.1312]
[1761180720143,0.2189,3817.4,3817.3,2.75085263]
[1761180720740,0.2165,3817.6,3817.3,2.75085263]
[1761180720938,0.2189,3817.5,3817.3,2.75085263]
[1761180722970,0.2189,3817.5,3817.4,2.61958401]
[1761180723139,0.2199,3817.8,3817.6,2.61939755]
[1761180723344,0.2199,3817.8,3817.7,2.61937815]
[1761180723345,0.001,3817.8,3817.7,2.61937815]
[1761180723545,0.001,3817.8,3817.7,2.75057815]
[1761180726259,0.001,3817.8,3817.1,0.237]
[1761180726260,0.001,3817.8,3815.7,0.237]
[1761180726261,1.5552,3817.7,3815.7,0.237]
[1761180726457,3.5556,3817.8,3815.8,3.339]
[1761180726680,0.2276,3817.7,3816.9,2.6198695]
[1761180726844,0.2276,3817.7,3816.0,0.50688]
[1761180726845,3.77438354,3817.7,3816.7,2.61999611]
[1761180727051,0.2276,3817.6,3816.7,2.61999611]
[1761180727250,0.2276,3817.6,3816.6,3.339]
[1761180727251,0.1289,3816.8,3816.6,3.339]
[1761180727452,2.88370009,3817.5,3816.6,5.95912763]
[1761180727648,0.2266,3817.4,3816.9,2.61992664]
[1761180727881,2.61965263,3817.3,3816.5,2.62014772]
[1761180728084,2.84620266,3817.4,3816.7,2.62005625]
[1761180728288,0.2266,3817.3,3816.6,0.02620133]
[1761180728585,0.2266,3817.3,3816.8,2.61994557]
[1761180728764,0.2266,3817.3,3816.6,2.62007459]
[1761180728960,0.2266,3817.3,3816.7,2.62003976]
[1761180729284,0.2266,3817.3,3816.8,2.61998041]
[1761180729480,0.2266,3817.3,3816.5,5.9591941]
[1761180729481,0.2266,3817.3,3816.5,3.7709]
[1761180729649,0.2266,3817.3,3817.1,2.61978434]
[1761180730460,8.83003346,3817.8,3817.5,2.61945998]
[1761180730461,0.001,3817.8,3817.5,2.61945998]
[1761180730659,0.001,3817.8,3817.4,3.339]
[1761180730863,0.001,3817.8,3817.7,2.61937815]
[1761180732293,0.001,3817.8,3817.7,3.5204575]
[1761180733401,0.001,3817.8,3817.7,3.9523575]
[1761180734396,0.001,3817.8,3817.7,7.2913575]
[1761180735287,0.001,3817.8,3817.7,7.7982375]
[1761180735608,0.001,3817.8,3817.7,4.4592375]
[1761180735812,0.001,3817.8,3817.7,7.7972375]
[1761180736107,0.001,3817.8,3817.7,4.4592375]
[1761180736410,0.001,3817.8,3817.7,7.9284375]
[1761180736600,0.001,3817.8,3817.7,7.4965375]
[1761180736976,0.001,3817.8,3817.7,7.9284375]
[1761180740804,0.001,3817.8,3817.7,6.9876575]
[1761180740992,0.001,3817.8,3817.7,7.4945375]
[1761180741199,0.001,3817.8,3817.7,7.9264375]
[1761180744384,0.001,3817.8,3817.7,7.9274375]
[1761180744886,0.001,3817.8,3817.7,7.4955375]
[1761180745717,0.001,3817.8,3817.7,7.9684375]
[1761180746293,0.001,3817.8,3817.7,10.85213759]
[1761180750220,0.001,3817.8,3817.7,10.37923759]
[1761180750918,0.001,3817.8,3817.7,10.37523759]
[1761180751302,0.001,3817.8,3817.7,7.04223759]
[1761180751827,0.001,3817.8,3817.7,10.37523759]
[1761180752896,0.001,3817.8,3817.7,10.85013759]
[1761180753216,0.001,3817.8,3817.7,10.84913759]
[1761180753419,0.001,3817.8,3817.7,10.37423759]
[1761180753618,0.001,3817.8,3817.7,11.92943759]
[1761180753791,0.001,3817.8,3817.7,12.40433759]
[1761180754618,0.001,3817.8,3817.7,11.92843759]
[1761180755003,0.001,3817.8,3817.7,8.5378575]
[1761180757708,0.001,3817.8,3817.7,5.2068575]
[1761180757904,0.001,3817.8,3817.7,8.5378575]
[1761180758310,0.4139,3817.8,3817.7,8.5378575]
[1761180758623,0.001,3817.8,3817.7,5.2068575]
[1761180758822,0.001,3817.8,3817.7,8.5368575]
[1761180760118,0.001,3817.8,3817.7,5.2068575]
[1761180760318,0.1891,3817.8,3817.7,5.2068575]
[1761180760501,0.1891,3817.8,3817.7,8.5358575]
[1761180760502,0.001,3817.8,3817.7,8.5358575]
[1761180762921,0.1891,3817.8,3817.7,8.5358575]
[1761180763232,0.1891,3817.8,3817.7,4.30577815]
[1761180763538,0.1891,3817.8,3817.7,7.63377815]
[1761180764730,0.001,3817.8,3817.7,7.63377815]
[1761180765232,0.001,3817.8,3817.7,8.61555815]
[1761180766826,0.001,3817.8,3817.7,8.14065815]
[1761180767032,0.001,3817.8,3817.7,9.59767194]
[1761180768545,0.001,3817.8,3817.7,10.07257194]
[1761180769302,0.001,3817.8,3817.7,13.40763626]
[1761180770317,0.001,3817.8,3817.7,9.46547194]
[1761180770524,0.001,3817.8,3817.7,9.94037194]
[1761180771913,0.001,3817.8,3817.7,6.13847194]
[1761180772115,0.001,3817.8,3817.7,9.46547194]
[1761180773862,0.001,3817.8,3817.7,9.94037194]
[1761180776135,0.001,3817.8,3817.7,6.61337194]
[1761180776335,0.001,3817.8,3817.7,9.93937194]
[1761180779137,0.001,3817.8,3817.7,9.46447194]
[1761180779536,0.001,3817.8,3817.7,9.89317194]
[1761180780273,0.001,3817.8,3817.7,6.69837194]
[1761180780638,0.001,3817.8,3817.7,10.02237194]
[1761180781863,0.001,3817.8,3817.7,6.69837194]
[1761180782051,0.001,3817.8,3817.7,10.02237194]
[1761180783176,0.001,3817.8,3817.7,13.87237194]
[1761180783355,0.001,3817.8,3817.7,14.10698622]
[1761180783875,0.001,3818.2,3818.1,3.12598374]
[1761180784039,0.001,3818.2,3818.1,11.80736643]
[1761180784244,0.001,3818.2,3818.1,12.36726643]
[1761180784772,0.001,3818.2,3818.1,12.53996643]
[1761180785377,0.001,3818.2,3818.1,12.36726643]
[1761180786154,2.74886406,3820.2,3818.1,9.04426643]
[1761180786155,0.1312,3820.2,3818.1,9.04426643]
[1761180786354,0.93950527,3821.4,3820.7,2.61732143]
[1761180786553,0.93950527,3821.4,3820.7,7.54052143]
[1761180786554,0.303,3820.9,3820.7,7.54052143]
[1761180786758,0.303,3820.9,3820.7,4.17252143]
[1761180786759,0.1799,3820.8,3820.7,4.17252143]
[1761180786954,0.1799,3820.8,3820.7,7.54052143]
[1761180787184,0.1799,3820.8,3820.3,0.303]
[1761180787479,0.1799,3820.8,3819.7,1.40278979]
[1761180787480,0.1799,3820.8,3820.2,2.286]
[1761180787681,0.1799,3820.8,3820.0,2.61777119]
[1761180787845,0.1799,3820.8,3820.2,3.369]
[1761180788683,0.1799,3820.8,3820.2,5.98665696]
[1761180788890,0.1799,3820.8,3820.3,2.61759547]
[1761180789289,0.1799,3820.8,3820.3,3.21625502]
[1761180789686,0.1799,3820.8,3820.3,0.59865955]
[1761180790708,0.1799,3820.8,3820.0,4.17299637]
[1761180791212,0.1799,3820.8,3820.4,2.61752212]
[1761180791512,0.1799,3820.8,3820.4,3.367]
[1761180792470,0.1799,3820.8,3820.4,5.98452171]
[1761180792881,0.1799,3820.8,3820.4,3.367]
[1761180793908,0.1799,3820.8,3820.4,3.366]
[1761180796106,0.1799,3820.8,3820.4,3.365]
[1761180796317,0.1799,3820.8,3820.4,3.364]
[1761180796616,0.1799,3820.8,3820.7,0.1312]
[1761180797182,3.09037189,3820.8,3820.7,0.1312]
[1761180797397,3.09037189,3820.8,3819.4,2.06208]
[1761180797617,3.09037189,3820.8,3819.2,2.61829244]
[1761180797618,2.61740649,3820.6,3820.4,0.1312]
[1761180797825,0.58398502,3820.6,3819.2,0.1799]
[1761180798007,0.1709,3820.7,3820.2,0.1312]
[1761180798008,2.6176022,3820.3,3820.2,0.1312]
[1761180798399,2.7885445,3820.3,3819.9,0.1312]
[1761180798599,0.1709,3820.2,3819.9,0.1312]
[1761180798911,3.34230306,3820.2,3819.9,0.1312]
[1761180799228,2.78858032,3820.2,3819.9,0.1312]
[1761180799382,0.1709,3820.1,3819.9,0.1312]
[1761180800985,2.74879403,3820.4,3819.9,0.1312]
[1761180801185,0.1709,3820.3,3819.9,0.1312]
[1761180801413,0.1709,3820.3,3819.9,2.61786452]
[1761180801616,3.66521896,3820.8,3819.9,2.61786452]
[1761180801617,0.1312,3820.6,3820.1,0.1312]
[1761180801817,0.01,3820.8,3820.2,3.4912]
[1761180802016,0.01,3820.8,3820.7,0.1312]
[1761180802208,0.1802,3820.8,3820.7,0.1312]
[1761180802718,0.1802,3820.8,3820.7,2.74852143]
[1761180802920,0.01,3820.8,3820.7,2.74852143]
[1761180804906,0.01,3820.8,3820.7,5.22404618]
[1761180806024,0.01,3820.8,3820.7,4.81060143]
[1761180806413,0.01,3820.8,3820.7,7.66372143]
[1761180807617,0.01,3820.8,3820.7,7.66272143]
[1761180808814,0.1111,3820.8,3820.7,5.0444]
[1761180809122,0.01,3820.8,3820.7,7.66172143]
[1761180809609,0.01,3820.8,3820.7,5.0444]
[1761180809809,0.01,3820.8,3820.7,7.66172143]
[1761180810509,0.01,3820.8,3820.7,5.0444]
[1761180810708,0.01,3820.8,3820.7,7.66172143]
[1761180812608,0.01,3820.8,3820.7,5.0444]
[1761180812913,0.1159,3820.8,3820.7,5.0444]
[1761180813245,0.1159,3820.8,3820.7,1.6864]
[1761180813812,0.1159,3820.8,3820.7,0.1312]
[1761180814014,0.01,3820.8,3820.7,0.1312]
[1761180814214,0.109,3820.8,3820.7,0.1312]
[1761180814912,0.109,3820.8,3819.7,0.4498]
[1761180814913,0.109,3820.8,3820.3,1.5552]
[1761180815146,0.109,3820.8,3820.7,0.1312]
[1761180817150,0.40237708,3820.8,3820.7,0.1312]
[1761180817513,0.109,3820.8,3820.7,0.1312]
[1761180818132,1.5552,3820.7,3819.0,1.40278979]
[1761180818451,6.79806432,3820.8,3819.3,1.5552]
[1761180818452,0.1003,3820.6,3819.3,1.5552]
[1761180818617,3.364,3820.8,3819.5,0.50688]
[1761180818819,3.4643,3820.8,3820.1,2.61767243]
[1761180819143,3.4643,3820.8,3820.2,2.61766013]
[1761180819348,0.1003,3820.7,3819.9,4.17306378]
[1761180819938,0.1003,3820.7,3820.2,2.6176538]
[1761180820450,0.1003,3820.7,3820.2,2.61764881]
[1761180820653,0.1003,3820.7,3819.9,1.5552]
[1761180820834,0.1003,3820.7,3820.1,2.61768976]
[1761180821155,0.0503,3820.7,3820.1,2.61768976]
[1761180821551,0.0503,3820.7,3820.2,2.61766223]
[1761180823454,0.01,3820.8,3820.2,2.61766223]
[1761180824017,0.0996,3820.7,3820.1,5.97571807]
[1761180824221,0.0996,3820.7,3820.1,2.61771807]
[1761180824444,0.0996,3820.7,3819.3,1.40278979]
[1761180824445,0.38811988,3820.7,3819.2,1.40278979]
[1761180824644,0.0996,3820.7,3820.0,2.61778133]
[1761180824819,2.71693209,3820.7,3820.0,2.61778133]
[1761180825038,0.0996,3820.7,3820.0,2.61778133]
[1761180825355,0.0996,3820.7,3819.9,5.97480253]
[1761180825535,0.0996,3820.7,3820.1,2.61767617]